bitfinex-derivatives/quotes_ETHF0:USTF0_20241007
["timestamp","ask_amount","ask_price","bid_price","bid_amount"]
[1728261529967,40.8,2473.8,2473.2,6.85484609]
[1728261530373,41.08297,2473.8,2473.2,3.2078]
[1728261530572,41.08298,2473.8,2473.2,6.85484609]
[1728261530774,40.8,2473.8,2473.2,6.85484609]
[1728261531168,0.28299,2473.7,2473.2,6.85484609]
[1728261531375,0.28299,2473.7,2473.2,3.2078]
[1728261531677,40.8,2473.8,2473.2,3.2078]
[1728261531883,0.28302,2473.5,2473.2,3.2078]
[1728261532083,0.28303,2473.4,2473.1,3.2078]
[1728261532385,0.28303,2473.3,2473.1,3.2078]
[1728261532570,0.28303,2473.3,2473.0,3.64704609]
[1728261532571,3.2078,2473.6,2472.9,3.2078]
[1728261532771,0.28307,2473.0,2472.9,3.2078]
[1728261532973,0.28309,2472.8,2472.7,3.2078]
[1728261533381,10.32709,2472.8,2472.7,3.2078]
[1728261533680,10.32709,2472.8,2472.3,3.2078]
[1728261533875,3.2078,2473.3,2472.3,3.2078]
[1728261534075,0.28304,2473.3,2472.8,3.64704609]
[1728261534473,3.2078,2473.7,2472.8,3.64704609]
[1728261534680,0.28306,2473.1,2472.8,3.64704609]
[1728261534881,3.2078,2473.7,2472.6,3.2078]
[1728261535081,3.2078,2473.7,2472.7,3.64704609]
[1728261535381,3.2078,2473.4,2472.3,3.2078]
[1728261535683,3.2078,2473.4,2472.4,3.64704609]
[1728261535882,3.2078,2473.1,2472.3,3.2078]
[1728261536086,0.28313,2472.4,2472.3,3.2078]
[1728261536379,3.2078,2472.8,2472.3,3.2078]
[1728261536578,0.28312,2472.5,2472.3,3.2078]
[1728261536779,0.28313,2472.4,2472.3,3.2078]
[1728261536977,40.8,2472.7,2472.3,3.2078]
[1728261537179,3.2078,2473.5,2472.6,3.64704609]
[1728261537375,3.2078,2473.5,2472.3,7.5878]
[1728261537376,0.28308,2472.9,2472.8,3.64704609]
[1728261537586,0.2831,2472.8,2472.6,3.64704609]
[1728261537778,3.2078,2473.2,2472.6,3.64704609]
[1728261537973,0.2831,2472.7,2472.6,3.64704609]
[1728261538380,3.2078,2473.2,2472.6,3.64704609]
[1728261538381,0.28309,2472.9,2472.6,3.64704609]
[1728261538578,0.2831,2472.8,2472.6,3.64704609]
[1728261538777,3.2078,2473.2,2472.6,3.64704609]
[1728261538978,0.2831,2472.8,2472.3,3.2078]
[1728261539179,0.28308,2472.9,2472.6,3.64704609]
[1728261539386,3.2078,2473.2,2472.6,3.64704609]
[1728261539581,0.2831,2472.7,2472.6,3.64704609]
[1728261539981,3.49078,2473.8,2472.6,17.74075805]
[1728261540182,3.2078,2473.8,2473.5,3.64704609]
[1728261540392,3.2078,2473.8,2473.4,3.64704609]
[1728261540680,0.28299,2473.7,2473.4,3.64704609]
[1728261540889,3.49078,2473.8,2473.4,3.64704609]
[1728261541087,0.28301,2473.5,2473.4,3.64704609]
[1728261541291,3.2078,2473.8,2473.4,3.64704609]
[1728261541589,3.2078,2473.8,2473.1,3.2078]
[1728261541590,0.28301,2473.5,2473.1,3.2078]
[1728261541790,0.28301,2473.5,2473.1,6.85484609]
[1728261542089,3.2078,2474.4,2473.4,6.85484609]
[1728261542278,3.49071,2474.4,2474.3,3.64704609]
[1728261542482,0.28294,2474.1,2474.0,3.64704609]
[1728261542788,0.28301,2473.5,2473.4,3.2078]
[1728261542994,0.283,2473.6,2473.5,3.64704609]
[1728261543383,0.70742,2473.9,2473.1,4.38]
[1728261543587,0.28303,2473.4,2473.3,3.64704609]
[1728261543986,3.2078,2473.8,2473.3,3.64704609]
[1728261544288,0.28302,2473.4,2473.3,3.64704609]
[1728261544687,0.28302,2473.4,2472.9,3.2078]
[1728261544988,3.2078,2473.8,2473.1,3.64704609]
[1728261545193,0.28304,2473.3,2473.1,3.64704609]
[1728261545686,0.28302,2473.4,2473.2,3.64704609]
[1728261545877,0.28303,2473.3,2473.2,3.64704609]
[1728261546283,10.0432,2473.3,2472.4,0.4113]
[1728261546487,3.2078,2473.2,2472.6,3.64704609]
[1728261546791,0.2831,2472.7,2472.6,3.64704609]
[1728261546992,0.28308,2472.9,2472.8,3.64704609]
[1728261547185,0.28308,2472.9,2472.3,3.2078]
[1728261547186,0.2831,2472.7,2472.6,3.64704609]
[1728261547693,0.28313,2472.4,2472.3,3.2078]
[1728261547995,0.7077,2472.9,2472.6,3.64704609]
[1728261548287,0.7077,2472.9,2472.3,6.85484609]
[1728261548896,0.7077,2472.9,2472.0,4.38]
[1728261548897,0.28317,2472.1,2472.0,3.2078]
[1728261549083,0.28317,2472.1,2472.0,3.64704609]
[1728261549795,0.28314,2472.4,2472.0,8.02704609]
[1728261550097,3.2078,2472.6,2472.0,3.64704609]
[1728261550386,0.28317,2472.1,2472.0,3.64704609]
[1728261550784,0.28316,2472.2,2472.0,3.64704609]
[1728261550992,0.70776,2472.7,2472.3,3.64704609]
[1728261551296,0.28313,2472.4,2472.3,3.64704609]
[1728261551792,4.38,2473.7,2472.3,3.64704609]
[1728261551793,0.28297,2473.9,2472.6,0.2831]
[1728261551988,0.28296,2473.9,2473.8,3.64704609]
[1728261552389,3.2078,2474.1,2473.0,7.5878]
[1728261552593,0.70748,2473.7,2473.3,3.64704609]
[1728261552798,0.28302,2473.4,2473.3,3.64704609]
[1728261553597,0.28302,2473.4,2473.3,6.85484609]
[1728261554687,3.2078,2473.5,2472.7,0.3971]
[1728261554886,42.21451,2474.5,2473.4,3.2078]
[1728261554887,3.2078,2473.9,2473.4,3.2078]
[1728261555086,0.28299,2473.7,2473.6,3.2078]
[1728261555388,3.2078,2474.3,2473.6,3.64704609]
[1728261555701,0.28299,2473.7,2473.6,3.64704609]
[1728261556399,3.2078,2474.0,2473.3,3.2078]
[1728261556703,3.2078,2474.0,2472.8,4.38]
[1728261556704,0.28301,2473.5,2473.4,2.82649609]
[1728261556891,0.28303,2473.3,2473.2,3.2078]
[1728261557090,0.28303,2473.3,2472.7,0.3971]
[1728261557091,0.28309,2472.8,2472.7,0.3971]
[1728261557287,0.70763,2473.2,2472.7,6.03429609]
[1728261557503,0.28312,2472.5,2472.4,3.2078]
[1728261557892,0.28312,2472.5,2472.4,6.03429609]
[1728261558201,0.28312,2472.5,2471.4,0.4173]
[1728261558202,10.75262,2472.5,2472.0,3.2078]
[1728261558399,0.28317,2472.1,2472.0,2.82649609]
[1728261559501,0.2832,2471.8,2471.7,4.38]
[1728261559896,0.2832,2471.8,2471.7,7.20649609]
[1728261560119,0.2832,2471.9,2471.7,7.20649609]
[1728261560311,3.2078,2473.3,2472.7,2.54339609]
[1728261560598,0.70748,2473.7,2473.2,2.54339609]
[1728261561091,0.28303,2473.3,2473.2,2.54339609]
[1728261561400,0.28304,2473.2,2472.8,0.4082]
[1728261561603,0.28308,2473.0,2472.8,2.95159609]
[1728261561796,0.70756,2473.4,2472.8,2.95159609]
[1728261562002,0.28308,2472.9,2472.8,5.75119609]
[1728261562197,0.28308,2472.9,2472.4,4.38]
[1728261562198,0.70762,2473.2,2472.4,7.5878]
[1728261562404,0.28309,2472.8,2472.7,3.2078]
[1728261562797,3.2078,2473.5,2472.2,3.2078]
[1728261563002,0.28317,2472.1,2472.0,4.38]
[1728261563197,0.7078,2472.6,2472.3,2.54339609]
[1728261563503,0.28313,2472.4,2472.3,5.75119609]
[1728261563703,0.28317,2472.1,2472.0,3.2078]
[1728261564105,3.2078,2472.3,2471.7,3.2078]
[1728261564407,3.2078,2472.3,2471.8,2.54339609]
[1728261564408,0.28319,2471.9,2471.8,2.54339609]
[1728261564605,0.70793,2472.1,2471.7,3.2078]
[1728261564802,0.70793,2472.1,2471.3,4.38]
[1728261564803,0.99114,2472.0,2471.5,3.2078]
[1728261564998,0.70793,2472.1,2471.5,2.54339609]
[1728261565199,0.28322,2471.7,2471.6,5.75119609]
[1728261566206,3.2078,2472.0,2471.0,4.38]
[1728261566404,3.2078,2472.0,2471.3,2.54339609]
[1728261566405,0.28325,2471.4,2471.3,2.54339609]
[1728261566595,0.70799,2471.9,2471.3,2.54339609]
[1728261566596,0.70799,2471.9,2471.3,5.75119609]
[1728261566801,0.28324,2471.5,2471.4,3.2078]
[1728261567202,0.28324,2471.5,2471.4,5.75119609]
[1728261570010,0.28321,2471.8,2471.4,5.75119609]
[1728261570314,9.02752866,2472.9,2472.1,2.54339609]
[1728261570315,3.2078,2472.9,2472.1,2.54339609]
[1728261570603,3.2078,2472.9,2471.7,7.5878]
[1728261570604,0.28313,2472.4,2472.3,2.54339609]
[1728261571010,0.28318,2472.1,2471.9,3.2078]
[1728261571208,0.28311,2472.6,2472.2,2.54339609]
[1728261571408,44.71552,2472.9,2472.2,5.75119609]
[1728261571409,0.28315,2472.3,2472.2,5.75119609]
[1728261572309,0.3881,2473.2,2472.2,5.75119609]
[1728261572509,1.12558,2473.4,2471.5,0.4237]
[1728261572510,0.28307,2473.0,2472.9,2.54339609]
[1728261573011,0.28307,2473.0,2471.5,0.4237]
[1728261573012,0.28315,2472.3,2472.2,7.89796789]
[1728261573204,0.70777,2472.7,2472.2,5.75119609]
[1728261573407,0.28315,2472.3,2472.2,5.75119609]
[1728261574311,0.28313,2472.5,2472.2,5.75119609]
[1728261574509,0.70773,2472.8,2472.3,2.54339609]
[1728261575009,0.28313,2472.4,2472.3,2.44339609]
[1728261575314,3.9155,2472.9,2472.3,2.44339609]
[1728261575514,3.2078,2472.9,2472.3,2.44339609]
[1728261575714,0.70773,2472.8,2472.3,2.44339609]
[1728261575909,0.28313,2472.5,2472.4,2.44339609]
[1728261576418,0.28313,2472.5,2472.1,3.2078]
[1728261576609,0.28313,2472.5,2472.4,5.65119609]
[1728261577010,0.28312,2472.6,2472.4,5.65119609]
[1728261577211,0.28311,2472.6,2472.5,2.44339609]
[1728261577413,0.4132,2473.0,2472.5,2.44339609]
[1728261577616,4.64752866,2473.5,2472.9,6.82339609]
[1728261577809,5.99130881,2473.7,2473.3,2.44339609]
[1728261577810,0.28302,2473.4,2473.3,2.44339609]
[1728261578716,5.35493866,2474.0,2473.3,2.44339609]
[1728261578717,4.64752866,2474.0,2473.3,2.44339609]
[1728261578913,3.2078,2474.3,2473.5,2.44339609]
[1728261578914,0.28298,2473.8,2473.5,2.44339609]
[1728261579219,0.28299,2473.7,2473.6,2.44339609]
[1728261580414,41.50736,2474.1,2473.6,2.44339609]
[1728261580610,5.87532866,2474.2,2473.7,5.65119609]
[1728261580611,0.28296,2474.0,2473.7,5.65119609]
[1728261580813,5.07002866,2474.2,2474.1,2.44339609]
[1728261581013,4.64752866,2474.3,2474.1,2.44339609]
[1728261581217,0.28293,2474.2,2474.1,2.44339609]
[1728261582014,0.2829,2474.5,2474.1,2.44339609]
[1728261582213,0.28289,2474.5,2474.4,2.44339609]
[1728261583214,4.93038866,2474.8,2474.4,2.44339609]
[1728261583516,4.93038866,2474.8,2474.3,7.5878]
[1728261583517,0.28286,2474.9,2474.7,2.44339609]
[1728261583714,4.64752866,2475.2,2474.8,2.44339609]
[1728261583919,40.8,2475.5,2475.1,2.44339609]
[1728261584123,10.32806747,2476.0,2475.6,2.44339609]
[1728261584424,0.28276,2475.7,2475.6,2.44339609]
[1728261584722,0.3967,2476.0,2475.1,3.2078]
[1728261584723,47.1967,2476.0,2475.1,3.2078]
[1728261584913,0.28282,2475.2,2475.1,2.44339609]
[1728261585116,0.28284,2475.0,2474.7,7.5878]
[1728261585314,0.28284,2475.0,2474.9,2.44339609]
[1728261585923,0.28285,2474.9,2474.4,3.2078]
[1728261586117,0.70707,2475.1,2474.4,3.2078]
[1728261586118,0.28288,2474.7,2474.6,2.44339609]
[1728261586424,0.70707,2475.1,2474.6,2.44339609]
[1728261586610,0.70707,2475.1,2474.4,3.2078]
[1728261586611,3.2078,2475.3,2474.7,2.44339609]
[1728261586816,0.28286,2474.8,2474.7,2.44339609]
[1728261587016,3.2078,2475.3,2474.4,3.2078]
[1728261587214,0.28288,2474.7,2474.6,2.44339609]
[1728261588825,0.4215,2475.0,2474.6,2.44339609]
[1728261589016,0.70434,2475.0,2474.9,2.44339609]
[1728261589922,0.4215,2475.0,2474.9,2.44339609]
[1728261590130,40.8,2476.0,2474.9,2.44339609]
[1728261590131,46.15435866,2476.0,2474.9,2.44339609]
[1728261590330,4.64752866,2475.5,2475.4,2.44339609]
[1728261590633,4.64752866,2475.7,2475.4,1.16469687]
[1728261590825,0.28277,2475.6,2475.1,4.38]
[1728261591425,0.28277,2475.6,2475.4,1.16469687]
[1728261591732,47.17776881,2476.0,2475.5,1.16469687]
[1728261591733,0.28277,2475.7,2475.5,1.16469687]
[1728261592028,16.56860528,2477.4,2475.5,1.16469687]
[1728261592029,4.11914194,2476.6,2475.6,3.2078]
[1728261592225,5.91580484,2477.3,2476.3,7.5878]
[1728261592417,0.28258,2477.3,2476.7,4.38]
[1728261592826,41.2132,2477.4,2476.7,4.38]
[1728261593021,0.807,2477.8,2477.1,4.38]
[1728261593427,1.08952,2477.8,2477.3,3.2078]
[1728261593620,0.28253,2477.7,2477.0,3.2078]
[1728261593923,0.807,2477.8,2477.0,3.2078]
[1728261594122,3.2078,2478.2,2477.3,3.2078]
[1728261594323,0.3836,2478.3,2477.3,3.2078]
[1728261594531,0.3836,2478.3,2477.6,3.2078]
[1728261595327,0.4048,2479.1,2477.9,7.5878]
[1728261595328,0.28241,2478.8,2477.9,7.5878]
[1728261595522,3.2078,2479.1,2477.9,7.5878]
[1728261595721,0.28242,2478.7,2478.2,3.2078]
[1728261596228,3.6074,2479.8,2478.5,3.2078]
[1728261596424,0.4043,2479.7,2478.5,3.2078]
[1728261596653,3.2078,2479.8,2478.8,3.2078]
[1728261596823,3.2078,2479.8,2478.6,8.49432466]
[1728261596824,40.8,2479.7,2478.6,8.49432466]
[1728261597031,3.91353,2479.8,2478.6,4.38]
[1728261597228,0.1008,2479.6,2478.9,7.68762208]
[1728261597424,0.1008,2479.6,2479.2,3.2078]
[1728261597824,0.1008,2479.6,2479.0,8.85982208]
[1728261598021,3.49017,2479.2,2478.6,3.2078]
[1728261598221,3.2078,2479.2,2478.6,3.2078]
[1728261598635,0.28239,2478.9,2478.3,7.5878]
[1728261598829,3.2078,2479.2,2478.7,4.548732]
[1728261599025,0.1008,2479.6,2478.0,3.2078]
[1728261599026,3.2078,2479.0,2478.0,3.2078]
[1728261599226,0.28242,2478.7,2478.0,3.2078]
[1728261599435,3.2078,2479.0,2478.0,3.2078]
[1728261599637,0.28245,2478.4,2478.0,3.2078]
[1728261599847,3.49023,2478.6,2477.9,4.38]
[1728261600138,40.8,2478.8,2477.9,4.38]
[1728261600328,0.3896,2479.1,2478.4,3.2078]
[1728261600531,0.38312,2479.6,2478.6,4.38]
[1728261600733,0.38312,2479.6,2478.7,3.2078]
[1728261600927,0.1008,2479.6,2479.2,3.2078]
[1728261601331,0.1008,2479.6,2479.5,3.49012]
[1728261601529,0.2,2480.0,2479.5,9.2078]
[1728261601736,3.2078,2481.1,2479.9,7.5878]
[1728261602041,0.28221,2480.5,2480.0,3.2078]
[1728261602229,0.0127,2481.0,2480.3,3.2078]
[1728261602533,4.38,2482.2,2480.3,3.2078]
[1728261602534,0.28203,2482.2,2481.0,0.28215]
[1728261602736,3.2078,2482.3,2481.5,7.5878]
[1728261603033,0.28213,2481.2,2481.1,9.96552629]
[1728261603233,0.28213,2481.2,2481.0,2.00648304]
[1728261603234,0.28214,2481.1,2481.0,2.00648304]
[1728261603435,0.28214,2481.1,2480.9,3.80736312]
[1728261603436,4.0304,2481.1,2480.1,3.2078]
[1728261603730,4.0304,2481.1,2479.6,4.38152304]
[1728261603731,3.2078,2480.9,2479.6,4.38152304]
[1728261603932,0.4,2480.8,2479.6,4.38152304]
[1728261604127,0.28224,2480.3,2479.7,3.2078]
[1728261604527,0.28225,2480.2,2479.7,3.2078]
[1728261604741,3.2078,2480.6,2479.7,3.2078]
[1728261605039,3.2078,2480.2,2479.0,3.2078]
[1728261605238,3.2078,2479.4,2478.4,3.2078]
[1728261605436,0.28243,2478.6,2478.4,3.2078]
[1728261605630,0.28237,2479.1,2478.4,3.2078]
[1728261605831,0.4159,2479.3,2478.4,3.2078]
[1728261606143,0.28246,2478.3,2477.7,7.5878]
[1728261606336,0.28246,2478.4,2477.7,7.5878]
[1728261606537,0.3958,2478.8,2477.7,7.5878]
[1728261606738,0.3958,2478.8,2478.0,7.5878]
[1728261607035,0.28246,2478.3,2477.7,7.5878]
[1728261607339,0.28247,2478.3,2477.7,7.5878]
[1728261607542,0.3958,2478.8,2477.7,11.623]
[1728261607737,0.3958,2478.8,2478.1,3.2078]
[1728261607931,0.28243,2478.6,2478.1,3.2078]
[1728261608243,0.28245,2478.4,2478.1,3.2078]
[1728261608440,0.3958,2478.8,2478.1,3.2078]
[1728261608741,3.6036,2478.8,2478.1,3.2078]
[1728261609037,3.6036,2478.8,2477.7,4.38]
[1728261609038,0.28247,2478.2,2477.8,3.2078]
[1728261609240,0.28251,2477.9,2477.8,3.2078]
[1728261609438,3.2078,2478.5,2477.8,3.2078]
[1728261609747,0.28238,2479.0,2478.4,3.2078]
[1728261609935,0.28238,2479.0,2476.7,0.4158]
[1728261609936,0.4159,2479.3,2478.5,7.5878]
[1728261610134,3.2078,2479.7,2478.7,3.2078]
[1728261610335,3.2078,2479.7,2478.6,3.2078]
[1728261610546,0.28238,2479.1,2478.6,3.2078]
[1728261610735,40.8,2479.6,2478.6,3.2078]
[1728261610935,0.28238,2479.1,2478.6,3.2078]
[1728261611142,0.70582,2479.5,2478.6,3.2078]
[1728261611336,40.8,2479.6,2478.6,3.2078]
[1728261611542,40.8,2479.6,2478.0,0.4027]
[1728261611543,0.28238,2479.0,2478.9,3.2078]
[1728261611742,0.98825,2479.3,2478.3,3.2078]
[1728261611938,3.2078,2479.4,2478.3,3.2078]
[1728261612243,0.70593,2479.1,2478.3,3.2078]
[1728261612438,0.70596,2479.0,2478.3,3.2078]
[1728261612747,3.2078,2479.1,2478.1,3.2078]
[1728261612945,0.2825,2478.0,2477.8,3.2078]
[1728261613136,0.7061,2478.5,2477.8,3.2078]
[1728261613332,0.28246,2478.3,2477.8,3.2078]
[1728261613537,0.28246,2478.4,2477.8,3.2078]
[1728261613840,0.28251,2477.9,2477.8,3.2078]
[1728261614241,0.28251,2477.9,2477.0,4.38]
[1728261614242,4.036,2477.9,2477.4,3.2078]
[1728261614537,0.4064,2478.9,2477.1,3.2078]
[1728261614538,4.3288,2478.2,2477.1,3.2078]
[1728261614741,1.121,2478.2,2477.1,3.2078]
[1728261615140,0.28255,2477.5,2477.1,3.2078]
[1728261615544,0.28252,2477.8,2477.1,3.2078]
[1728261615738,41.08254,2477.7,2477.1,3.2078]
[1728261616043,0.28257,2477.4,2477.1,3.2078]
[1728261616235,0.28258,2477.3,2477.1,3.2078]
[1728261616434,40.8,2477.7,2477.1,3.2078]
[1728261616744,0.4143,2478.1,2477.1,3.2078]
[1728261616943,0.28253,2477.7,2477.1,3.2078]
[1728261617144,0.28255,2477.5,2477.1,3.2078]
[1728261617547,40.8,2478.0,2477.1,3.2078]
[1728261617735,0.28259,2477.2,2477.1,3.2078]
[1728261617943,0.28259,2477.2,2476.4,3.2078]
[1728261617944,10.0368,2477.2,2476.4,3.2078]
[1728261618149,0.70647,2477.2,2476.4,3.2078]
[1728261618353,0.28266,2476.6,2476.4,3.2078]
[1728261618646,3.2078,2477.1,2475.9,7.9733]
[1728261618647,3.63,2477.1,2475.9,7.9733]
[1728261618841,0.28267,2476.5,2476.2,3.2078]
[1728261619039,0.3896,2477.0,2475.8,3.2078]
[1728261619243,0.28272,2476.1,2475.8,3.2078]
[1728261619547,3.63,2477.1,2475.9,4.38]
[1728261619743,3.2078,2477.7,2476.8,3.2078]
[1728261619948,0.28253,2477.7,2476.8,3.49043]
[1728261620154,0.28255,2477.6,2477.1,3.2078]
[1728261620542,0.3896,2477.8,2477.1,3.2078]
[1728261620740,3.2078,2477.7,2477.1,3.2078]
[1728261621041,0.28262,2476.9,2476.4,3.2078]
[1728261621243,0.98901,2477.3,2476.4,3.2078]
[1728261621545,0.28263,2476.8,2476.4,3.2078]
[1728261621750,0.28263,2476.9,2476.4,3.2078]
[1728261622248,0.4098,2477.2,2476.4,3.2078]
[1728261622444,0.28264,2476.8,2476.4,3.2078]
[1728261622642,0.4098,2477.2,2476.4,3.2078]
[1728261622936,0.2826,2477.1,2476.4,3.2078]
[1728261623338,0.69239,2477.2,2476.4,3.2078]
[1728261623536,0.2826,2477.1,2476.4,3.2078]
[1728261623736,0.69239,2477.2,2476.4,3.2078]
[1728261623941,0.4098,2477.2,2476.4,3.2078]
[1728261624945,0.28263,2476.9,2476.4,3.2078]
[1728261625141,0.28263,2476.9,2476.0,7.87052]
[1728261625343,0.4098,2477.2,2476.3,3.2078]
[1728261625744,0.28263,2476.9,2476.3,3.2078]
[1728261625945,0.28263,2476.8,2476.3,3.2078]
[1728261626347,3.2078,2476.8,2476.3,3.2078]
[1728261626550,0.2827,2476.3,2475.8,3.2078]
[1728261626748,0.28268,2476.4,2475.8,3.2078]
[1728261627156,0.28269,2476.3,2475.8,3.2078]
[1728261627450,0.28268,2476.4,2475.8,3.2078]
[1728261628048,0.2827,2476.3,2475.8,3.2078]
[1728261628352,0.28269,2476.4,2475.8,3.2078]
[1728261628547,40.8,2476.6,2475.8,3.2078]
[1728261628854,0.28273,2476.0,2475.5,3.2078]
[1728261629049,3.2078,2476.5,2475.5,3.2078]
[1728261629249,0.28274,2475.9,2475.5,3.2078]
[1728261629455,0.28275,2475.8,2475.5,3.2078]
[1728261629947,3.2078,2476.2,2475.5,3.2078]
[1728261630148,3.5913,2477.0,2476.1,3.2078]
[1728261630462,5.0864,2477.5,2476.6,3.49045]
[1728261630463,0.28256,2477.5,2476.6,3.49045]
[1728261630753,4.7778,2478.2,2477.3,3.2078]
[1728261630754,0.3978,2478.2,2477.3,3.2078]
[1728261631452,0.28255,2477.6,2477.0,3.2078]
[1728261631646,0.28254,2477.7,2477.0,3.2078]
[1728261631843,3.2078,2478.0,2477.0,3.2078]
[1728261632149,0.28254,2477.7,2477.0,3.2078]
[1728261632351,3.2078,2478.0,2477.3,3.2078]
[1728261632552,0.7965,2478.2,2477.3,3.2078]
[1728261632741,0.28251,2477.9,2477.3,3.2078]
[1728261632945,0.28255,2477.5,2476.7,4.38]
[1728261633155,0.70622,2478.1,2476.7,4.38]
[1728261633156,0.28257,2477.4,2476.7,4.38]
[1728261633550,3.2078,2477.7,2476.9,3.2078]
[1728261633766,0.28251,2477.9,2477.2,3.2078]
[1728261633945,0.7965,2478.2,2477.2,3.2078]
[1728261634150,1.07897,2478.2,2477.2,3.2078]
[1728261634446,0.68027,2478.2,2477.5,3.2078]
[1728261634644,0.68027,2478.2,2477.1,3.2078]
[1728261634645,0.3978,2478.2,2477.1,3.2078]
[1728261634856,0.28255,2477.6,2477.1,3.2078]
[1728261635252,0.28257,2477.4,2477.1,3.2078]
[1728261635453,0.3978,2478.2,2477.2,0.28258]
[1728261635454,0.68028,2478.2,2477.2,0.28258]
[1728261635652,0.3978,2478.2,2477.6,3.2078]
[1728261635857,3.2078,2478.5,2477.9,3.2078]
[1728261636061,41.2168,2478.9,2478.2,3.2078]
[1728261636062,44.4246,2478.9,2478.2,3.2078]
[1728261636253,44.707,2478.9,2478.2,3.2078]
[1728261636448,0.28243,2478.6,2478.2,3.2078]
[1728261636753,41.2168,2478.9,2478.2,3.2078]
[1728261636754,0.28245,2478.5,2478.2,3.2078]
[1728261637062,41.2168,2478.9,2478.2,3.2078]
[1728261637063,0.28244,2478.6,2478.2,3.2078]
[1728261637273,0.28242,2478.7,2478.2,3.2078]
[1728261637566,3.6291,2479.6,2478.2,3.2078]
[1728261637775,0.28236,2479.3,2478.5,3.2078]
[1728261638256,0.28236,2479.3,2478.2,0.3891]
[1728261638257,0.28239,2479.0,2478.2,0.3891]
[1728261638458,40.8,2479.5,2478.6,3.2078]
[1728261638459,0.28235,2479.3,2478.6,3.2078]
[1728261638650,40.8,2479.5,2478.6,3.2078]
[1728261638857,0.28237,2479.1,2478.6,3.2078]
[1728261639053,40.8,2479.5,2478.2,0.3891]
[1728261639054,0.28241,2478.8,2478.2,0.3891]
[1728261639259,0.28239,2479.0,2478.2,0.3891]
[1728261639562,0.2824,2478.9,2478.4,3.2078]
[1728261640059,0.28243,2478.6,2478.4,3.2078]
[1728261640653,0.3843,2478.9,2478.4,3.2078]
[1728261641063,0.28243,2478.6,2478.4,3.2078]
[1728261641654,4.31684,2478.5,2478.4,3.2078]
[1728261641855,0.28244,2478.5,2478.1,3.2078]
[1728261642459,0.28247,2478.2,2478.1,3.2078]
[1728261642670,0.28251,2478.0,2477.7,3.2078]
[1728261642861,1.08633,2478.6,2477.7,3.49032]
[1728261643064,5.08594,2479.1,2478.0,3.2078]
[1728261643367,3.2078,2479.2,2477.4,8.64508811]
[1728261643368,3.2078,2479.2,2478.3,3.2078]
[1728261643564,0.8039,2479.4,2478.7,3.2078]
[1728261643864,0.8039,2479.4,2478.1,8.96714714]
[1728261643865,0.28229,2479.8,2479.0,3.2078]
[1728261644062,3.2078,2479.9,2479.3,0.28234]
[1728261644253,0.8041,2480.7,2479.0,3.2078]
[1728261644254,3.2078,2480.9,2479.8,3.2078]
[1728261644460,3.2078,2480.9,2480.1,3.2078]
[1728261644461,3.48997,2480.9,2480.1,3.2078]
[1728261644657,3.2078,2480.9,2480.1,3.2078]
[1728261644871,3.2078,2480.9,2480.4,3.2078]
[1728261645356,3.2078,2480.9,2480.4,7.5878]
[1728261645753,3.2078,2480.9,2480.0,3.2078]
[1728261646167,3.2078,2480.9,2480.1,0.28225]
[1728261646356,3.2078,2480.9,2480.3,3.2078]
[1728261647159,0.28218,2480.8,2480.3,3.2078]
[1728261647360,0.28219,2480.7,2480.3,3.2078]
[1728261647862,4.0312,2480.6,2479.4,7.5878]
[1728261648066,0.4231,2480.8,2479.4,7.5878]
[1728261648366,0.2822,2480.7,2479.9,3.2078]
[1728261648771,0.70529,2480.8,2479.9,3.2078]
[1728261648971,0.28219,2480.7,2479.9,3.2078]
[1728261649269,0.2822,2480.7,2479.9,3.2078]
[1728261649763,0.28222,2480.5,2479.9,3.2078]
[1728261649965,0.4231,2480.8,2479.9,3.2078]
[1728261650357,0.28222,2480.5,2479.9,3.2078]
[1728261650557,0.4231,2480.8,2479.9,3.2078]
[1728261650759,0.28226,2480.1,2479.5,3.2078]
[1728261650958,0.70548,2480.7,2479.5,3.2078]
[1728261650959,0.3978,2480.7,2479.5,3.2078]
[1728261651160,0.3978,2480.7,2479.9,3.2078]
[1728261651361,0.70528,2480.8,2479.9,3.2078]
[1728261651562,0.28221,2480.6,2480.2,3.2078]
[1728261652172,0.28223,2480.3,2480.2,3.2078]
[1728261652373,4.73668,2480.7,2480.2,3.2078]
[1728261652567,0.28223,2480.3,2480.2,3.2078]
[1728261652769,0.28229,2479.9,2479.4,3.2078]
[1728261652965,0.7056,2480.3,2479.4,3.2078]
[1728261653273,3.2078,2480.1,2479.1,3.2078]
[1728261653570,0.28234,2479.4,2479.1,3.2078]
[1728261653972,3.49013,2479.5,2479.1,3.2078]
[1728261654167,0.70565,2480.1,2479.1,3.2078]
[1728261654168,0.28234,2479.4,2479.1,3.2078]
[1728261654362,8.75897365,2480.3,2479.3,4.38]
[1728261654671,3.2078,2480.6,2479.7,3.2078]
[1728261654866,3.2078,2480.6,2479.6,4.38]
[1728261654867,3.2078,2480.6,2479.6,7.5878]
[1728261655061,3.2078,2480.6,2479.3,4.38]
[1728261655262,0.28224,2480.3,2479.5,3.2078]
[1728261655463,0.2822,2480.7,2479.6,4.38]
[1728261655771,0.7888,2481.3,2480.3,4.38]
[1728261655971,0.4033,2481.5,2480.4,3.2078]
[1728261656270,40.8,2481.7,2480.7,3.2078]
[1728261656462,0.28209,2481.6,2480.4,3.2078]
[1728261656662,40.8,2481.7,2480.4,3.2078]
[1728261656972,0.28212,2481.3,2480.4,3.2078]
[1728261657172,0.28211,2481.4,2480.4,3.2078]
[1728261657466,3.2078,2481.6,2480.4,3.2078]